[Event "Mistrovství Čech mládeže 2023 - HD14"]
[Site "Harrachov, Czech Republic"]
[Date "2023.10.24"]
[Round "5.16"]
[White "Jančík, Vojtěch"]
[Black "Pásek, Josef"]
[Result "1-0"]
[TimeControl "90m + 30s"]
[WhiteElo "1219"]
[BlackElo "1555"]

1. e4 {[%clk 01:30:30]} {[%emt 00:42:25]} c5 {[%clk 01:30:52]} {[%emt
00:00:14]} 2. Nf3 {[%clk 01:30:28]} {[%emt 00:00:34]} Nc6 {[%clk 01:31:17]}
{[%emt 00:00:05]} 3. d4 {[%clk 01:30:35]} {[%emt 00:00:23]} cxd4 {[%clk
01:31:39]} {[%emt 00:00:07]} 4. Nxd4 {[%clk 01:31:02]} {[%emt 00:00:04]} e5
{[%clk 01:31:51]} {[%emt 00:00:17]} 5. Nb5 {[%clk 01:30:15]} {[%emt 00:01:17]}
d6 {[%clk 01:32:10]} {[%emt 00:00:11]} 6. N1c3 {[%clk 01:29:54]} {[%emt
00:00:50]} a6 {[%clk 01:31:59]} {[%emt 00:00:41]} 7. Na3 {[%clk 01:29:39]}
{[%emt 00:00:46]} Be6 {[%clk 01:30:34]} {[%emt 00:01:55]} 8. Nd5 {[%clk
01:27:59]} {[%emt 00:02:09]} Nf6 {[%clk 01:30:06]} {[%emt 00:00:57]} 9. Bg5
{[%clk 01:26:47]} {[%emt 00:01:42]} Bxd5 {[%clk 01:29:57]} {[%emt 00:00:41]} 10.
exd5 {[%clk 01:19:21]} {[%emt 00:07:57]} Qa5+ {[%clk 01:30:04]} {[%emt
00:00:22]} 11. c3 {[%clk 01:14:53]} {[%emt 00:04:58]} Qxd5 {[%clk 01:29:57]}
{[%emt 00:00:37]} 12. Bxf6 {[%clk 01:13:31]} {[%emt 00:01:53]} Qxd1+ {[%clk
01:30:20]} {[%emt 00:00:07]} 13. Rxd1 {[%clk 01:13:59]} {[%emt 00:00:03]} gxf6
{[%clk 01:30:41]} {[%emt 00:00:08]} 14. Nc4 {[%clk 01:13:56]} {[%emt 00:00:34]}
Rd8 {[%clk 01:10:49]} {[%emt 00:20:21]} 15. Nb6 {[%clk 01:11:23]} {[%emt
00:03:03]} Bg7 {[%clk 01:02:28]} {[%emt 00:08:51]} 16. Rd3 {[%clk 01:03:52]}
{[%emt 00:08:00]} O-O {[%clk 00:59:40]} {[%emt 00:03:18]} 17. Nd5 {[%clk
01:00:41]} {[%emt 00:03:40]} f5 {[%clk 00:57:32]} {[%emt 00:02:40]} 18. Rg3
{[%clk 00:59:00]} {[%emt 00:02:10]} f4 {[%clk 00:56:50]} {[%emt 00:01:13]} 19.
Rh3 {[%clk 00:56:42]} {[%emt 00:02:48]} b5 {[%clk 00:42:21]} {[%emt 00:14:59]}
20. Bd3 {[%clk 00:54:08]} {[%emt 00:03:03]} h6 {[%clk 00:36:01]} {[%emt
00:06:51]} 21. g4 {[%clk 00:51:55]} {[%emt 00:02:43]} fxg3 {[%clk 00:16:41]}
{[%emt 00:19:50]} 22. f3 {[%clk 00:38:06]} {[%emt 00:14:19]} gxh2 {[%clk
00:14:17]} {[%emt 00:02:53]} 23. R3xh2 {[%clk 00:37:55]} {[%emt 00:00:41]} f5
{[%clk 00:13:49]} {[%emt 00:00:59]} 24. Bc2 {[%clk 00:36:36]} {[%emt 00:01:48]}
Rd7 {[%clk 00:13:27]} {[%emt 00:00:53]} 25. Rg2 {[%clk 00:34:10]} {[%emt
00:02:56]} Kh8 {[%clk 00:10:35]} {[%emt 00:03:22]} 26. Rh5 {[%clk 00:31:18]}
{[%emt 00:03:22]} f4 {[%clk 00:10:13]} {[%emt 00:00:52]} 27. Rg6 {[%clk
00:18:08]} {[%emt 00:13:41]} Rff7 {[%clk 00:06:36]} {[%emt 00:04:06]} 28. Re6
{[%clk 00:16:16]} {[%emt 00:02:21]} b4 {[%clk 00:05:29]} {[%emt 00:01:38]} 29.
Ba4 {[%clk 00:14:41]} {[%emt 00:02:05]} bxc3 {[%clk 00:03:41]} {[%emt
00:02:18]} 30. bxc3 {[%clk 00:15:01]} {[%emt 00:00:09]} Nd8 {[%clk 00:03:10]}
{[%emt 00:01:00]} 31. Re8+ {[%clk 00:14:07]} {[%emt 00:01:24]} Kh7 {[%clk
00:03:35]} {[%emt 00:00:05]} 32. Bc2+ {[%clk 00:14:29]} {[%emt 00:00:08]} 1-0

[Event "Mistrovství Čech mládeže 2023 - HD14"]
[Site "Harrachov, Czech Republic"]
[Date "2023.10.24"]
[Round "5.17"]
[White "Malý, Jiří"]
[Black "Nguyen, Nhat Minh Thu"]
[Result "0-1"]
[TimeControl "90m + 30s"]
[WhiteElo "1490"]
[BlackElo "1238"]

1. e4 {[%clk 01:30:56]} {[%emt 00:00:03]} e5 {[%clk 01:30:56]} {[%emt
00:00:05]} 2. Nf3 {[%clk 01:31:19]} {[%emt 00:00:07]} Nc6 {[%clk 01:31:19]}
{[%emt 00:00:07]} 3. Bb5 {[%clk 01:31:42]} {[%emt 00:00:06]} a6 {[%clk
01:31:13]} {[%emt 00:00:36]} 4. Ba4 {[%clk 01:31:40]} {[%emt 00:00:33]} d6
{[%clk 01:30:31]} {[%emt 00:01:12]} 5. d3 {[%clk 01:26:31]} {[%emt 00:05:39]}
h6 {[%clk 01:25:14]} {[%emt 00:05:47]} 6. h3 {[%clk 01:24:45]} {[%emt
00:02:16]} Nf6 {[%clk 01:25:16]} {[%emt 00:00:28]} 7. O-O {[%clk 01:23:22]}
{[%emt 00:01:53]} Be7 {[%clk 01:23:40]} {[%emt 00:02:06]} 8. c3 {[%clk
01:21:39]} {[%emt 00:02:13]} O-O {[%clk 01:23:23]} {[%emt 00:00:46]} 9. Re1
{[%clk 01:16:32]} {[%emt 00:05:37]} Bd7 {[%clk 01:09:13]} {[%emt 00:14:40]} 10.
d4 {[%clk 01:12:10]} {[%emt 00:04:52]} b5 {[%clk 01:05:26]} {[%emt 00:04:17]}
11. Bc2 {[%clk 01:11:37]} {[%emt 00:01:02]} Re8 {[%clk 00:57:54]} {[%emt
00:08:03]} 12. a3 {[%clk 01:03:54]} {[%emt 00:08:13]} Nh7 {[%clk 00:47:34]}
{[%emt 00:10:49]} 13. Qd3 {[%clk 00:58:34]} {[%emt 00:05:50]} Ng5 {[%clk
00:45:04]} {[%emt 00:03:00]} 14. Nh2 {[%clk 00:56:09]} {[%emt 00:02:55]} Bf6
{[%clk 00:39:17]} {[%emt 00:06:17]} 15. f4 {[%emt 00:06:58]} exf4 {[%clk
00:37:54]} {[%emt 00:01:05]} 16. Bxf4 {[%clk 00:47:27]} {[%emt 00:03:31]} Bf5
{[%clk 00:25:58]} {[%emt 00:12:27]} 17. Nd2 {[%clk 00:41:36]} {[%emt 00:06:21]}
Bg6 {[%clk 00:23:56]} {[%emt 00:02:32]} 18. d5 {[%clk 00:17:48]} {[%emt
00:24:18]} Ne5 {[%clk 00:23:01]} {[%emt 00:01:25]} 19. Qe2 {[%clk 00:16:47]}
{[%emt 00:01:31]} Qd7 {[%clk 00:21:13]} {[%emt 00:02:19]} 20. h4 {[%clk
00:15:00]} {[%emt 00:02:17]} Nxe4 {[%clk 00:13:36]} {[%emt 00:08:07]} 21. Bxe4
{[%clk 00:14:32]} {[%emt 00:00:57]} Bxe4 {[%clk 00:13:25]} {[%emt 00:00:41]} 22.
Nxe4 {[%clk 00:09:54]} {[%emt 00:05:08]} Bxh4 {[%clk 00:12:55]} {[%emt
00:00:59]} 23. Bg3 {[%clk 00:08:47]} {[%emt 00:01:38]} Bxg3 {[%clk 00:12:33]}
{[%emt 00:00:52]} 24. Nxg3 {[%clk 00:09:03]} {[%emt 00:00:14]} Nc4 {[%clk
00:12:35]} {[%emt 00:00:28]} 25. Qf2 {[%clk 00:07:20]} {[%emt 00:01:43]} Nb6
{[%clk 00:11:54]} {[%emt 00:01:11]} 26. Qd4 {[%clk 00:07:06]} {[%emt 00:01:13]}
Nc4 {[%clk 00:11:36]} {[%emt 00:00:49]} 27. b3 {[%clk 00:05:39]} {[%emt
00:01:58]} Ne5 {[%clk 00:11:35]} {[%emt 00:00:31]} 28. Nf3 {[%clk 00:05:08]}
{[%emt 00:01:00]} Nxf3+ {[%clk 00:11:35]} {[%emt 00:00:29]} 29. gxf3 {[%clk
00:05:32]} {[%emt 00:00:06]} Qh3 {[%clk 00:11:47]} {[%emt 00:00:18]} 30. Qf2
{[%clk 00:05:55]} {[%emt 00:00:07]} Qd7 {[%clk 00:11:27]} {[%emt 00:00:50]} 31.
Rxe8+ {[%clk 00:06:06]} {[%emt 00:00:19]} Rxe8 {[%clk 00:11:49]} {[%emt
00:00:09]} 32. Re1 {[%clk 00:06:32]} {[%emt 00:00:04]} Rb8 {[%clk 00:12:02]}
{[%emt 00:00:17]} 33. Kg2 {[%clk 00:06:07]} {[%emt 00:00:55]} c6 {[%clk
00:12:14]} {[%emt 00:00:18]} 34. Qd4 {[%clk 00:05:52]} {[%emt 00:00:45]} c5
{[%clk 00:12:13]} {[%emt 00:00:31]} 35. Qg4 {[%clk 00:05:45]} {[%emt 00:00:36]}
Qd8 {[%clk 00:11:21]} {[%emt 00:01:22]} 36. Nf5 {[%clk 00:05:47]} {[%emt
00:00:28]} Qf6 {[%clk 00:11:08]} {[%emt 00:00:43]} 37. Re3 {[%clk 00:03:56]}
{[%emt 00:02:22]} a5 {[%clk 00:11:05]} {[%emt 00:00:32]} 38. f4 {[%clk
00:03:45]} {[%emt 00:00:41]} b4 {[%clk 00:11:03]} {[%emt 00:00:33]} 39. axb4
{[%clk 00:03:29]} {[%emt 00:00:46]} cxb4 {[%clk 00:11:09]} {[%emt 00:00:24]} 40.
c4 {[%clk 00:02:22]} {[%emt 00:01:37]} Qb2+ {[%clk 00:11:27]} {[%emt 00:00:12]}
41. Kh3 {[%clk 00:01:27]} {[%emt 00:01:25]} Qf6 {[%clk 00:11:48]} {[%emt
00:00:10]} 42. Rg3 {[%clk 00:01:25]} {[%emt 00:00:32]} g6 {[%clk 00:11:22]}
{[%emt 00:00:56]} 43. Nxh6+ {[%clk 00:01:36]} {[%emt 00:00:18]} Kh7 {[%clk
00:11:43]} {[%emt 00:00:09]} 44. Qg5 {[%clk 00:01:41]} {[%emt 00:00:25]} Qa1
{[%clk 00:10:09]} {[%emt 00:02:05]} 45. Ng4 {[%clk 00:00:37]} {[%emt 00:01:33]}
Qh1+ {[%clk 00:10:10]} {[%emt 00:00:28]} 46. Nh2 {[%clk 00:01:00]} {[%emt
00:00:07]} Kg7 {[%clk 00:10:32]} {[%emt 00:00:08]} 47. Rg1 {[%clk 00:01:00]}
{[%emt 00:00:30]} Rh8+ {[%clk 00:10:55]} {[%emt 00:00:07]} 48. Kg3 {[%clk
00:00:39]} {[%emt 00:00:51]} Qxg1+ {[%clk 00:11:11]} {[%emt 00:00:14]} 49. Kf3
{[%clk 00:00:59]} {[%emt 00:00:09]} Qxg5 {[%emt 00:00:09]} 50. fxg5 {[%clk
00:01:21]} {[%emt 00:00:07]} Rxh2 {[%clk 00:11:58]} {[%emt 00:00:05]} 51. Ke4
{[%clk 00:01:33]} {[%emt 00:00:18]} a4 {[%clk 00:12:14]} {[%emt 00:00:14]} 52.
c5 {[%clk 00:01:38]} {[%emt 00:00:25]} dxc5 {[%clk 00:12:25]} {[%emt 00:00:20]}
53. d6 {[%clk 00:01:57]} {[%emt 00:00:11]} Rd2 {[%clk 00:12:41]} {[%emt
00:00:14]} 54. Ke5 {[%clk 00:02:17]} {[%emt 00:00:11]} a3 {[%clk 00:13:03]}
{[%emt 00:00:08]} 0-1

[Event "Mistrovství Čech mládeže 2023 - HD14"]
[Site "Harrachov, Czech Republic"]
[Date "2023.10.24"]
[Round "5.18"]
[White "Hrdlička, Jan"]
[Black "Mezera, Antonín"]
[Result "1-0"]
[TimeControl "90m + 30s"]
[WhiteElo "1418"]
[BlackElo "1166"]

1. e4 {[%clk 01:30:52]} {[%emt 00:00:07]} c5 {[%clk 01:30:30]} {[%emt
00:00:30]} 2. Nf3 {[%clk 01:31:15]} {[%emt 00:00:07]} d6 {[%clk 01:30:48]}
{[%emt 00:00:13]} 3. d4 {[%clk 01:31:26]} {[%emt 00:00:18]} cxd4 {[%clk
01:31:12]} {[%emt 00:00:06]} 4. Nxd4 {[%clk 01:31:48]} {[%emt 00:00:08]} Nf6
{[%clk 01:31:38]} {[%emt 00:00:04]} 5. Nc3 {[%clk 01:32:04]} {[%emt 00:00:13]}
g6 {[%clk 01:31:58]} {[%emt 00:00:10]} 6. f3 {[%clk 01:31:18]} {[%emt
00:01:16]} Bg7 {[%clk 01:32:09]} {[%emt 00:00:20]} 7. Be3 {[%clk 01:31:40]}
{[%emt 00:00:07]} Nc6 {[%clk 01:32:07]} {[%emt 00:00:32]} 8. Qd2 {[%clk
01:31:23]} {[%emt 00:00:47]} a6 {[%clk 01:31:15]} {[%emt 00:01:23]} 9. g4
{[%clk 01:27:52]} {[%emt 00:04:01]} Be6 {[%clk 01:30:37]} {[%emt 00:01:08]} 10.
Nxe6 {[%clk 01:27:18]} {[%emt 00:01:04]} fxe6 {[%clk 01:31:05]} {[%emt
00:00:02]} 11. h4 {[%clk 01:27:14]} {[%emt 00:00:33]} Ne5 {[%clk 01:29:39]}
{[%emt 00:01:56]} 12. Be2 {[%clk 01:26:17]} {[%emt 00:01:27]} Rc8 {[%clk
01:20:46]} {[%emt 00:09:24]} 13. O-O-O {[%clk 01:24:04]} {[%emt 00:02:41]} b5
{[%clk 01:14:51]} {[%emt 00:06:26]} 14. h5 {[%clk 01:21:05]} {[%emt 00:03:30]}
Rf8 {[%clk 01:08:11]} {[%emt 00:07:10]} 15. hxg6 {[%clk 01:20:47]} {[%emt
00:00:48]} Nc4 {[%clk 00:53:07]} {[%emt 00:15:34]} 16. Bxc4 {[%clk 01:20:49]}
{[%emt 00:00:27]} Rxc4 {[%clk 00:53:36]} {[%emt 00:00:02]} 17. gxh7 {[%clk
01:20:41]} {[%emt 00:00:37]} Qa5 {[%clk 00:52:30]} {[%emt 00:01:36]} 18. a3
{[%clk 01:15:32]} {[%emt 00:05:40]} Nd7 {[%clk 00:51:34]} {[%emt 00:01:26]} 19.
Rdf1 {[%clk 01:06:08]} {[%emt 00:09:53]} Rh8 {[%clk 00:46:33]} {[%emt
00:05:30]} 20. Kd1 {[%clk 00:53:16]} {[%emt 00:13:23]} Bxc3 {[%clk 00:42:24]}
{[%emt 00:04:39]} 21. bxc3 {[%clk 00:51:52]} {[%emt 00:01:53]} Qxa3 {[%clk
00:42:33]} {[%emt 00:00:23]} 22. g5 {[%clk 00:50:46]} {[%emt 00:01:36]} Nf8
{[%clk 00:42:53]} {[%emt 00:00:10]} 23. g6 {[%clk 00:50:19]} {[%emt 00:00:56]}
Nxg6 {[%clk 00:42:37]} {[%emt 00:00:45]} 24. Rfg1 {[%clk 00:50:37]} {[%emt
00:00:12]} Kf7 {[%clk 00:42:15]} {[%emt 00:00:53]} 25. Qg2 {[%clk 00:49:51]}
{[%emt 00:01:16]} Qxc3 {[%clk 00:38:48]} {[%emt 00:04:27]} 26. Qxg6+ {[%clk
00:50:37]} {[%emt 00:00:14]} Kf8 {[%clk 00:39:15]} {[%emt 00:00:03]} 27. Qg8+
{[%clk 00:50:43]} {[%emt 00:00:24]} 1-0

[Event "Mistrovství Čech mládeže 2023 - HD14"]
[Site "Harrachov, Czech Republic"]
[Date "2023.10.25"]
[Round "6.1"]
[White "Topenčík, Bruno"]
[Black "Váňa, Jan"]
[Result "1-0"]
[TimeControl "90m + 30s"]
[WhiteElo "1832"]
[BlackElo "1969"]

1. c4 {[%clk 01:30:57]} {[%emt 00:00:02]} Nf6 {[%clk 01:30:28]} {[%emt
00:00:32]} 2. Nf3 {[%clk 01:31:17]} {[%emt 00:00:11]} e6 {[%clk 01:30:27]}
{[%emt 00:00:31]} 3. g3 {[%clk 01:31:38]} {[%emt 00:00:09]} d5 {[%clk
01:30:42]} {[%emt 00:00:15]} 4. Bg2 {[%clk 01:31:56]} {[%emt 00:00:12]} Be7
{[%clk 01:30:44]} {[%emt 00:00:27]} 5. O-O {[%clk 01:31:54]} {[%emt 00:00:33]}
O-O {[%clk 01:27:49]} {[%emt 00:03:25]} 6. d4 {[%clk 01:28:13]} {[%emt
00:04:11]} dxc4 {[%clk 01:26:48]} {[%emt 00:01:31]} 7. Ne5 {[%clk 01:25:44]}
{[%emt 00:03:00]} Nc6 {[%clk 01:25:39]} {[%emt 00:01:38]} 8. Nxc6 {[%clk
01:25:43]} {[%emt 00:00:31]} bxc6 {[%clk 01:26:03]} {[%emt 00:00:06]} 9. Na3
{[%clk 01:25:31]} {[%emt 00:00:42]} Bxa3 {[%clk 01:15:28]} {[%emt 00:11:04]} 10.
bxa3 {[%clk 01:25:55]} {[%emt 00:00:07]} Nd5 {[%clk 01:14:58]} {[%emt
00:01:00]} 11. Qa4 {[%clk 01:13:19]} {[%emt 00:13:06]} Nb6 {[%clk 01:05:01]}
{[%emt 00:10:28]} 12. Qa5 {[%clk 01:12:04]} {[%emt 00:01:44]} Rb8 {[%clk
00:47:07]} {[%emt 00:18:24]} 13. Bf4 {[%clk 01:07:30]} {[%emt 00:05:04]} Nd5
{[%clk 00:31:25]} {[%emt 00:16:13]} 14. Rab1 {[%clk 01:01:42]} {[%emt
00:06:18]} Rxb1 {[%clk 00:16:44]} {[%emt 00:15:11]} 15. Rxb1 {[%clk 01:01:16]}
{[%emt 00:00:55]} Nxf4 {[%clk 00:13:42]} {[%emt 00:03:32]} 16. gxf4 {[%clk
01:01:37]} {[%emt 00:00:09]} Qxd4 {[%clk 00:11:56]} {[%emt 00:02:16]} 17. Rc1
{[%clk 00:49:10]} {[%emt 00:12:57]} Qxf4 {[%clk 00:09:29]} {[%emt 00:02:57]} 18.
e3 {[%clk 00:49:18]} {[%emt 00:00:21]} Qd6 {[%clk 00:08:33]} {[%emt 00:01:27]}
19. Rxc4 {[%clk 00:48:03]} {[%emt 00:01:45]} Qd1+ {[%clk 00:07:37]} {[%emt
00:01:26]} 20. Bf1 {[%clk 00:48:24]} {[%emt 00:00:08]} e5 {[%clk 00:07:20]}
{[%emt 00:00:47]} 21. Qa4 {[%clk 00:44:24]} {[%emt 00:04:30]} Rd8 {[%clk
00:07:38]} {[%emt 00:00:13]} 22. Qxd1 {[%clk 00:41:45]} {[%emt 00:03:08]} Rxd1
{[%clk 00:08:04]} {[%emt 00:00:04]} 23. Rb4 {[%clk 00:42:07]} {[%emt 00:00:08]}
Rd8 {[%clk 00:05:34]} {[%emt 00:03:00]} 24. Rb8 {[%clk 00:42:30]} {[%emt
00:00:07]} Rf8 {[%clk 00:05:54]} {[%emt 00:00:10]} 25. Ra8 {[%clk 00:41:41]}
{[%emt 00:01:17]} Be6 {[%clk 00:03:29]} {[%emt 00:02:57]} 26. Rxa7 {[%clk
00:41:22]} {[%emt 00:00:50]} g6 {[%clk 00:01:11]} {[%emt 00:02:47]} 27. a4
{[%clk 00:39:35]} {[%emt 00:02:17]} Bxa2 {[%clk 00:00:36]} {[%emt 00:01:05]} 28.
a5 {[%clk 00:38:15]} {[%emt 00:01:50]} c5 {[%clk 00:00:33]} {[%emt 00:00:34]}
29. Rxc7 {[%clk 00:37:34]} {[%emt 00:01:10]} Ra8 {[%clk 00:00:33]} {[%emt
00:00:30]} 30. Rxc5 {[%clk 00:37:26]} {[%emt 00:00:38]} e4 {[%clk 00:00:36]}
{[%emt 00:00:28]} 31. a6 {[%clk 00:35:53]} {[%emt 00:02:03]} Ra7 {[%clk
00:00:48]} {[%emt 00:00:17]} 32. Rb5 {[%clk 00:36:10]} {[%emt 00:00:13]} Kg7
{[%clk 00:00:33]} {[%emt 00:00:46]} 33. Rb7 {[%emt 00:00:35]} Ra8 34. Bb5
{[%clk 00:35:23]} {[%emt 00:01:11]} Kf6 {[%clk 00:00:38]} {[%emt 00:00:55]} 35.
Rb6+ {[%clk 00:34:57]} {[%emt 00:00:56]} Ke5 {[%clk 00:00:33]} {[%emt
00:00:35]} 36. Bc6 {[%clk 00:33:41]} {[%emt 00:01:45]} Ra7 {[%clk 00:00:56]}
{[%emt 00:00:07]} 37. Bb7 {[%clk 00:30:45]} {[%emt 00:03:25]} Bc4 {[%clk
00:00:58]} {[%emt 00:00:28]} 38. Kg2 {[%clk 00:30:23]} {[%emt 00:00:51]} f5
{[%clk 00:00:34]} {[%emt 00:00:55]} 39. Kg3 {[%clk 00:28:01]} {[%emt 00:02:52]}
g5 {[%clk 00:00:41]} {[%emt 00:00:23]} 40. h4 {[%clk 00:27:26]} {[%emt
00:01:05]} h6 {[%clk 00:00:33]} {[%emt 00:00:39]} 41. Rxh6 {[%clk 00:26:55]}
{[%emt 00:01:00]} gxh4+ {[%clk 00:00:51]} {[%emt 00:00:12]} 42. Kxh4 {[%clk
00:27:13]} {[%emt 00:00:12]} Bd5 {[%clk 00:00:43]} {[%emt 00:00:39]} 43. Rb6
{[%clk 00:26:40]} {[%emt 00:01:02]} Bc4 {[%clk 00:00:39]} {[%emt 00:00:35]} 44.
Kg5 {[%clk 00:25:11]} {[%emt 00:01:58]} Bd3 {[%clk 00:00:39]} {[%emt 00:00:31]}
45. Kg6 {[%clk 00:25:05]} {[%emt 00:00:36]} Bc4 {[%clk 00:00:43]} {[%emt
00:00:27]} 46. Rc6 {[%clk 00:25:07]} {[%emt 00:00:27]} Bd3 {[%clk 00:00:32]}
{[%emt 00:00:42]} 47. Kf7 {[%clk 00:24:26]} {[%emt 00:01:10]} f4 {[%clk
00:00:36]} {[%emt 00:00:26]} 48. Rc5+ {[%clk 00:18:34]} {[%emt 00:06:22]} Kd6
{[%clk 00:01:02]} {[%emt 00:00:05]} 49. Rd5+ {[%clk 00:18:53]} {[%emt
00:00:11]} Kc7 {[%clk 00:01:27]} {[%emt 00:00:05]} 50. exf4 {[%clk 00:18:13]}
{[%emt 00:01:09]} Bxa6 {[%clk 00:00:34]} {[%emt 00:01:24]} 51. Bxa6 {[%clk
00:18:29]} {[%emt 00:00:14]} Rxa6 {[%clk 00:01:02]} {[%emt 00:00:02]} 52. Rd4
{[%clk 00:17:11]} {[%emt 00:01:45]} Ra2 {[%clk 00:00:52]} {[%emt 00:00:42]} 53.
Rxe4 {[%clk 00:17:05]} {[%emt 00:00:36]} Rxf2 {[%clk 00:00:33]} {[%emt
00:00:49]} 54. Kf6 {[%clk 00:17:23]} {[%emt 00:00:11]} Kd8 {[%clk 00:00:31]}
{[%emt 00:00:32]} 55. f5 {[%clk 00:17:42]} {[%emt 00:00:11]} Rg2 {[%clk
00:00:33]} {[%emt 00:00:29]} 56. Kf7 {[%clk 00:17:57]} {[%emt 00:00:14]} Kd7
{[%clk 00:00:34]} {[%emt 00:00:29]} 57. Rd4+ {[%clk 00:18:16]} {[%emt
00:00:10]} Kc7 {[%clk 00:00:59]} {[%emt 00:00:06]} 58. f6 {[%clk 00:18:41]}
{[%emt 00:00:05]} Rf2 {[%clk 00:00:37]} {[%emt 00:00:52]} 59. Ke7 {[%clk
00:19:05]} {[%emt 00:00:06]} Re2 {[%clk 00:01:01]} {[%emt 00:00:06]} 60. Kf8
{[%clk 00:19:29]} {[%emt 00:00:05]} Rf2 {[%clk 00:01:17]} {[%emt 00:00:14]} 61.
f7 {[%clk 00:19:27]} {[%emt 00:00:32]} Rf1 {[%clk 00:01:12]} {[%emt 00:00:36]}
62. Ke7 {[%clk 00:18:51]} {[%emt 00:01:06]} Re1 {[%clk 00:01:37]} {[%emt
00:00:05]} 63. Kf6 {[%clk 00:19:14]} {[%emt 00:00:07]} Rf1+ {[%clk 00:02:03]}
{[%emt 00:00:04]} 64. Ke6 {[%clk 00:19:08]} {[%emt 00:00:36]} Kc8 {[%clk
00:01:17]} {[%emt 00:01:16]} 65. Rd5 {[%clk 00:19:15]} {[%emt 00:00:24]} Rf2
{[%clk 00:00:47]} {[%emt 00:01:00]} 66. Rf5 {[%clk 00:19:36]} {[%emt 00:00:09]}
Re2+ {[%clk 00:01:11]} {[%emt 00:00:06]} 67. Kf6 {[%clk 00:19:52]} {[%emt
00:00:13]} Re8 {[%clk 00:00:33]} {[%emt 00:01:09]} 68. fxe8=Q+ {[%clk
00:20:11]} {[%emt 00:00:11]} 1-0

[Event "Mistrovství Čech mládeže 2023 - HD14"]
[Site "Harrachov, Czech Republic"]
[Date "2023.10.25"]
[Round "6.2"]
[White "Švadlenka, Dominik"]
[Black "Švadlenka, Michal"]
[Result "1/2-1/2"]
[TimeControl "90m + 30s"]
[WhiteElo "1710"]
[BlackElo "1651"]

1. c4 {[%clk 01:30:58]} {[%emt 00:00:01]} c5 {[%clk 01:30:54]} {[%emt
00:00:06]} 2. Nc3 {[%clk 01:31:26]} {[%emt 00:00:02]} Nc6 {[%clk 01:31:15]}
{[%emt 00:00:09]} 3. Nf3 {[%clk 01:31:53]} {[%emt 00:00:03]} Nd4 {[%clk
01:31:35]} {[%emt 00:00:10]} 4. e3 {[%clk 01:32:19]} {[%emt 00:00:04]} Nxf3+
{[%clk 01:31:57]} {[%emt 00:00:08]} 5. Qxf3 {[%clk 01:32:44]} {[%emt 00:00:06]}
g6 {[%clk 01:32:16]} {[%emt 00:00:11]} 6. b3 {[%clk 01:33:11]} {[%emt
00:00:03]} Bg7 {[%clk 01:32:39]} {[%emt 00:00:07]} 7. Bb2 {[%clk 01:33:36]}
{[%emt 00:00:04]} Nf6 {[%clk 01:32:57]} {[%emt 00:00:12]} 8. g3 {[%clk
01:34:00]} {[%emt 00:00:06]} d6 {[%clk 01:33:17]} {[%emt 00:00:10]} 9. Nd5
{[%clk 01:34:26]} {[%emt 00:00:04]} e5 {[%clk 01:33:36]} {[%emt 00:00:11]} 10.
Nxf6+ {[%clk 01:34:52]} {[%emt 00:00:05]} Qxf6 {[%clk 01:33:56]} {[%emt
00:00:10]} 11. Qxf6 {[%clk 01:35:17]} {[%emt 00:00:04]} Bxf6 {[%clk 01:34:19]}
{[%emt 00:00:07]} 12. Bg2 {[%clk 01:35:43]} {[%emt 00:00:04]} Rb8 {[%clk
01:34:40]} {[%emt 00:00:10]} 13. O-O-O {[%clk 01:36:08]} {[%emt 00:00:05]} Ke7
{[%clk 01:35:00]} {[%emt 00:00:10]} 14. Bd5 {[%clk 01:36:33]} {[%emt 00:00:05]}
Be6 {[%clk 01:35:23]} {[%emt 00:00:07]} 1/2-1/2